Cogmind - Beta 16.1 *** ADVENTURER MODE // 2026.04.03 @ 16:23:36 Player: Sharded of Serpulo Result: Destroyed by G-47 Trooper with Particle Gun Performance ------------- Evolutions (0) 0 Regions Visited (2) 400 Robots Destroyed (17) 85 Value Destroyed (276) 276 Prototype IDs (0) 0 Alien Tech Used (0) 0 Bonus (0) 0 TOTAL SCORE: 761 Bonus ------- None Cogmind --------- Core Integrity 0/250 Matter 179/300 Energy 250/250 System Corruption 0% Temperature Cool (15) Movement Treading (240) Ox1 Location -10/Mines Parts ------- > --- POWER (1) -------- Ion Engine > --- PROPULSION (2) --- Light Treads > --- UTILITY (2) ------ Large Storage Unit > --- WEAPON (2) ------- Assault Rifle Light Assault Rifle > --- INVENTORY (15) --- Light Deuterium Engine Hover Unit Hover Unit Hover Unit Hover Unit Hover Unit Hover Unit Medium Storage Unit Light Assault Rifle Mining Laser Peak State ------------ > --- POWER ------------ Ion Engine > --- PROPULSION ------- Light Treads Light Treads > --- UTILITY ---------- Large Storage Unit Signal Interpreter > --- WEAPON ----------- Assault Rifle Mining Laser > --- INVENTORY -------- Ion Engine Hover Unit Hover Unit Hover Unit Hover Unit Hover Unit Hover Unit Medium Storage Unit EM Pulse Gun Assault Rifle Light Assault Rifle Light Assault Rifle Light Assault Rifle Light Assault Rifle [Rating: 8] Favorites ----------- Power Ion Engine Engine Ion Engine Propulsion Light Treads Treads Light Treads Utility Large Storage Unit Storage Large Storage Unit Processor Signal Interpreter Weapon Assault Rifle Energy Gun EM Pulse Gun Ballistic Gun Assault Rifle Special Weapon Mining Laser Build | -11 -10 -10 ------- Run | Yrd Mat Min Slots Evolved . | . . . Power . | . . . Propulsion . | . . . Utility . | . . . Weapon . | . . . Parts Attached 17 | 6 6 5 Power 2 | 1 . 1 Engine 2 | 1 . 1 Core . | . . . Reactor . | . . . Propulsion 3 | 2 1 . Treads 3 | 2 1 . Leg . | . . . Wheel . | . . . Hover . | . . . Flight . | . . . Utility 3 | 1 2 . Device . | . . . Storage 2 | 1 1 . Processor 1 | . 1 . Hackware . | . . . Protection . | . . . Artifact . | . . . Weapon 9 | 2 3 4 Energy Gun 1 | 1 . . Energy Cannon . | . . . Ballistic Gun 7 | 1 2 4 Ballistic Cannon . | . . . Launcher . | . . . Special Weapon 1 | . 1 . Impact Weapon . | . . . Slashing Weapon . | . . . Piercing Weapon . | . . . Special Melee Weapon . | . . . Unidentified Prototypes . | . . . Parts Lost 8 | . . 8 Power 1 | . . 1 Propulsion 2 | . . 2 Utility 1 | . . 1 Weapon 4 | . . 4 Highest Loss Streak 5 | . . 5 To Critical Strikes . | . . . Average Backups 11 | 1 12 13 Power . | . 1 . Propulsion 5 | . 5 6 Utility . | . . 1 Weapon 4 | . 5 4 Tool/Special . | . . . Unused Backups 9 | . 2 7 Power . | . . . Propulsion 8 | . 2 6 Utility 1 | . . 1 Weapon . | . . . Tool/Special . | . . . Average Slot Usage (%) 89 | . 90 83 Engine 13 | . 13 14 Treads 25 | . 27 19 Storage 14 | . 14 14 Processor 7 | . 7 7 Energy Gun 2 | . 2 . Ballistic Gun 24 | . 24 27 Peak Build Rating 8 | 6 8 8 Average Rating 6 | 5 7 6 On Entrance 4 | . 6 8 Avg Prop Armor Cover (%) . | . . . Naked Turns . | . . . Heaviest Build 29 | 14 29 28 Greatest Support 40 | 40 40 40 Greatest Overweight (x) 7 | . 7 1 Average Overweight (x) . | . . . Largest Inventory Capacity 15 | 8 15 15 Average Capacity 13 | 7 13 15 Most Carried 15 | 2 15 15 Average Carried 11 | 1 12 13 Final Capacity 15 | 8 15 15 Final Carried 15 | 2 15 10 Class Distribution -------------------- 100% | Mutant Dominant Class ---------------- Mutant | -10/Materials Mutant | -10/Mines Resources | -11 -10 -10 ----------- Run | Yrd Mat Min Matter Collected 607 | 284 213 110 Remotely . | . . . Salvage Created 478 | 86 289 103 Parts 29 | 8 21 . Haulers Intercepted 1 | . 1 . Recyclers Shooed . | . . . Parts Field Recycled . | . . . Retrieved Matter . | . . . Parts Self-Destructed . | . . . Prevented . | . . . Parts Restored . | . . . Kills | -11 -10 -10 ------- Run | Yrd Mat Min Combat Hostiles Destroyed 17 | . 9 8 Guns 17 | . 9 8 Classes Destroyed 7 | 1 4 2 Tunneler 4 | 4 . . Hauler 1 | . 1 . Watcher 2 | . 2 . Swarmer 7 | . 7 . Grunt 2 | . 2 . Demolisher 1 | . . 1 Assembled 7 | . . 7 Best Kill Streak 7 | 3 5 7 Combat Bots Only 7 | . 3 7 Max Kills in Single Turn 1 | 1 1 1 Gunslinging . | . . . Exploded . | . . . Melee . | . . . Uniques/NPCs Destroyed . | . . . Combat | -11 -10 -10 -------- Run | Yrd Mat Min Hostile Shots Fired 100 | . 39 61 Missed 27 | . 13 14 Hits 73 | . 26 47 Melee 5 | . . 5 Projectile 68 | . 26 42 AOE 12 | . . 12 Part Disruptions 2 | . . 2 Damage Taken 1042 | . 220 822 Core 251 | . 48 203 Absorbed by Shields . | . . . Ignored by Resistances 295 | . 65 230 Core Remaining (%) 100 | 100 . . Volleys Fired 62 | 8 31 23 Largest 2 | 2 2 2 Hottest 100 | 60 100 40 Shots Fired 123 | 16 61 46 Gun 122 | 16 60 46 Cannon . | . . . Launcher . | . . . Special 1 | . 1 . Kinetic 106 | 8 52 46 Thermal 1 | . 1 . Explosive . | . . . Electromagnetic 16 | 8 8 . Robot Hit Streak 12 | 9 11 12 Robot Miss Streak 3 | 2 3 2 Penetration Max . | . . . Secondary Targets 2 | . 1 1 Max Gunslinging Chain 1 | . 1 1 Shots Hit Robots 87 | 12 39 36 Core Hits 39 | 4 17 18 Critical Kills . | . . . Critical Parts Destroyed . | . . . Critical Strikes . | . . . Melee Attacks . | . . . Impact . | . . . Slashing . | . . . Piercing . | . . . Sneak Attacks . | . . . Combat Hostiles . | . . . Follow-up Attacks . | . . . Damage Inflicted 1022 | 159 461 402 Guns 1022 | 159 461 402 Cannons . | . . . Explosions . | . . . Melee . | . . . Ramming . | . . . Kinetic 878 | 79 397 402 Thermal . | . . . Explosive . | . . . Electromagnetic 144 | 80 64 . Impact . | . . . Slashing . | . . . Piercing . | . . . Highest Corruption . | . . . Average Corruption . | . . . Corruption Purged . | . . . Corruption Blocked . | . . . Overload Shots . | . . . Overflow Damage . | . . . Projectiles . | . . . Explosions . | . . . Melee . | . . . Knockbacks . | . . . Impact . | . . . Kinetic . | . . . Secondary . | . . . Self-Inflicted Damage . | . . . Shots . | . . . Rammed . | . . . Targets Rammed . | . . . Kicked . | . . . Crushed . | . . . Highest Temperature 20 | . 20 20 Average Temperature 13 | . 9 15 Received Heat Transfer 269 | . 78 191 Siege Activations . | . . . Martial Activations . | . . . Shielding Activations . | . . . Robots Disrupted . | . . . Combat Hostiles . | . . . Robots Corrupted . | . . . Combat Hostiles . | . . . Parts Fried 1 | 1 . . Impact Corruptions . | . . . Robots Melted . | . . . Combat Hostiles . | . . . Parts Melted . | . . . Heat Transferred . | . . . Parts Sabotaged . | . . . Parts Stolen . | . . . Parts Stripped . | . . . Power Chain Reactions . | . . . Alert | -11 -10 -10 ------- Run | Yrd Mat Min Maximum Alert Level . | . . . Low Security (%) 100 | 100 100 100 Level 1 . | . . . Level 2 . | . . . Level 3 . | . . . Level 4 . | . . . Level 5 . | . . . High Security . | . . . Max Security . | . . . Peak Influence 77 | 10 77 20 Initial . | . . . Average 9 | . 12 2 Influence Increases 280 | 20 240 20 Destroy 0b10 Robot/C 200 | . 180 20 Destroy 0b10 Robot/NC 35 | 20 15 . Destroy Leader 36 | . 36 . Disable Machine 9 | . 9 . Influence Decreases 280 | 20 240 20 Time Decay 280 | 20 240 20 Squads Dispatched . | . . . Investigation . | . . . Extermination . | . . . Reinforcement . | . . . Assault . | . . . Garrison . | . . . Intercept . | . . . Searches Triggered . | . . . Construction Impeded . | . . . Haulers Reinforced . | . . . Active Scanning Responses . | . . . Cargo Convoy Interrupts . | . . . Stealth | -11 -10 -10 --------- Run | Yrd Mat Min Distress Signals . | . . . Communications Jammed . | . . . Distress Signals . | . . . Times Spotted 27 | . 15 12 Peak Tracking Total 8 | . 5 8 Tactical Retreats . | . . . Traps | -11 -10 -10 ------- Run | Yrd Mat Min Traps Triggered 7 | . 7 . Indirectly . | . . . Trap Hack Attempts . | . . . Triggered . | . . . Disarmed . | . . . Reprogrammed . | . . . Reused . | . . . Traps Extracted . | . . . Installed . | . . . Triggered . | . . . Machines | -11 -10 -10 ---------- Run | Yrd Mat Min Machines Disabled 1 | . 1 . Max in Single Turn 1 | . 1 . Machines Repaired . | . . . Machines Dismantled . | . . . Machines Sabotaged . | . . . Overloaded Fab Kills . | . . . Hacking | -11 -10 -10 --------- Run | Yrd Mat Min Machines Accessed 1 | . 1 . Terminals . | . . . Fabricators . | . . . Repair Stations . | . . . Recycling Units 1 | . 1 . Scanalyzers . | . . . Garrison Access . | . . . Total Hacks 1 | . 1 . Successful 1 | . 1 . Failed . | . . . Catastrophic . | . . . Database Lockouts . | . . . Manual . | . . . Terminals . | . . . Fabricators . | . . . Repair Stations . | . . . Recycling Units 1 | . 1 . Scanalyzers . | . . . Garrison Access . | . . . Terminal Hacks . | . . . Fabricator Hacks . | . . . Repair Station Hacks . | . . . Recycling Unit Hacks 1 | . 1 . Retrieve Components 1 | . 1 . Scanalyzer . | . . . Garrison Access Hacks . | . . . Unauthorized Hacks . | . . . Terminals . | . . . Fabricators . | . . . Repair Stations . | . . . Recycling Units . | . . . Scanalyzers . | . . . Garrison Access . | . . . Data Cores Recovered . | . . . Used . | . . . Hacking Detections . | . . . Full Trace Events . | . . . Feedback Events . | . . . Feedback Blocked . | . . . Robot Schematics Acquired . | . . . Robots Built . | . . . Authchips . | . . . Time . | . . . Total Robot Build Rating . | . . . Part Schematics Acquired . | . . . Parts Built . | . . . Authchips . | . . . Time . | . . . Total Part Build Rating . | . . . Part Studies Acquired . | . . . Parts Repaired . | . . . Time . | . . . Parts Recycled . | . . . Recycled Matter . | . . . Retrieved Matter . | . . . Retrieved Components 2 | . 2 . Parts Scanalyzed . | . . . Part Schematics Acquired . | . . . Parts Damaged . | . . . Bothacking | -11 -10 -10 ------------ Run | Yrd Mat Min Used RIF Installer . | . . . Robots Hacked . | . . . Non-combat . | . . . Combat . | . . . Robot Hacks Applied . | . . . Relay Couplers Released . | . . . Fabnet Peak Effective % . | . . . Robots Rewired . | . . . Allies Hacked . | . . . Hacks Repelled . | . . . Allies | -11 -10 -10 -------- Run | Yrd Mat Min Total Allies . | . . . Largest Group . | . . . Highest-Rated Group . | . . . Highest-Rated Ally . | . . . Total Orders . | . . . Ally Attacks . | . . . Total Damage . | . . . Kills . | . . . Allies Corrupted . | . . . Allies Melted . | . . . Intel | -11 -10 -10 ------- Run | Yrd Mat Min Active Infowar (turns) . | . . . Robot Analysis Total . | . . . Derelict Logs Recovered 1 | . . 1 Drone Launches . | . . . Drone Recoveries . | . . . Exploration | -11 -10 -10 ------------- Run | Yrd Mat Min Turns Passed 1461 | 171 1083 207 Spaces Moved 727 | 91 564 72 Core 11 | 9 2 . Treads 716 | 82 562 72 Legs . | . . . Wheels . | . . . Hover . | . . . Flight . | . . . Fastest Speed 50 | 50 160 160 Average Speed 161 | 149 161 183 Slowest Speed 400 | 160 400 240 Overloaded Moves . | . . . Propulsion Burnouts . | . . . Robots Hopped . | . . . Potential Cave-ins . | . . . Cave-ins Triggered . | . . . Exploration Rate (%) 38 | 5 85 24 Regions Visited 2 Branch Regions 1 Pre-discovered Areas 1 | . . 1 Known Exits Taken 1 | . 1 . Unknown Exits Taken 1 | 1 . . Scrap Searched . | . . . Spaces Dug . | . . . Terrain Destroyed . | . . . Melee . | . . . Projectile . | . . . AOE . | . . . Terrain Rammed . | . . . Walls Destroyed . | . . . Machines Disabled . | . . . Actions | -11 -10 -10 --------- Run | Yrd Mat Min Total 889 | 109 675 105 Wait 35 | . 35 . Move 725 | 90 563 72 Hop . | . . . Pick Up 27 | 5 21 1 Fast Attach 14 | 3 11 . Attach 15 | 3 6 6 Detach 1 | . 1 . Swap 6 | . 3 3 Drop 4 | . 4 . Fire 62 | 8 31 23 Melee . | . . . Ram . | . . . Kick . | . . . Crush . | . . . Escape Stasis . | . . . Rewire . | . . . Trap . | . . . Miscellaneous . | . . . Route ------- -11/Scrapyard -10/Materials (discovered 4 exits: *Mat x3 / *Min) -10/Mines History --------- Turn | Location | Event 44 | -11/Scrapyard | Discovered new exit (range 12) 172 | -11/Scrapyard | Entered Materials 330 | -10/Materials | Build established: Mutant 332 | -10/Materials | Discovered new exit (range 15) 647 | -10/Materials | Discovered new exit (range 16) 695 | -10/Materials | Identified exit to Materials 883 | -10/Materials | Discovered exit to Materials (range 14) 1203 | -10/Materials | Discovered new exit (range 7) 1211 | -10/Materials | Identified exit to Mines 1255 | -10/Materials | Entered Mines 1259 | -10/Mines | Learned location of Zion (-6) 1320 | -10/Mines | Assembled infested the area 1383 | -10/Mines | Lost 3 parts (1n1u1w) 1395 | -10/Mines | Destroyed 7 combat bots 1404 | -10/Mines | Core integrity fell below 50% 1413 | -10/Mines | Core integrity fell below 20% 1451 | -10/Mines | Lost 5 parts (1p1n3w) 1462 | -10/Mines | Destroyed by G-47 Trooper with Particle Gun Last Messages --------------- K-01 Serf collects debris. Acquired 19 matter. K-01 Serf collects debris. Lgt. Assault Rifle destroyed. Ion Engine destroyed. Lgt. Treads destroyed. K-01 Serf destroyed. EM Pulse Gun destroyed. D-53 Grenadier destroyed. Core Extractor disabled. The unstable cave ceiling collapses. Destroyed Shock Absorption System. The unstable cave ceiling collapses. Lgt. Assault Rifle destroyed. The unstable cave ceiling collapses. D-53 Grenadier destroyed. Acquired Lgt. Deuterium Engine. The unstable cave ceiling collapses. U-05 Engineer builds a Wall. U-05 Engineer lays Concrete. Map ----- +----------------------------------------------------+ | | | | | | | | | | | | | ?????????????????????????????????????????????????? | | ?????????????????????????????????????????????????? | | ??????????????????##????????????##########???????? | | ?????????????????## ???????????# """ #???????? | | ????????????????## ??????????# """ #???????? | | ?????????????#### ??????????# """ #???????? | | ?????????????? ??????????# #???????? | | ??????????????? ?????????# #???????? | | ????????????????# ????###??# #???????? | | ?????????????????# ??## ##?###### ##???????? | | ??????????????????? ### #??????# #????????? | | ???????????????????? #??????# #????????? | | ????????????????????? #???????# #????????? | | ??????????????????????# #????????# #????????? | | ??????????????????????##u #????????# #????????? | | ?????????????????????## u ##??????## #????????? | | ????????????????????## #gg ###??#### #????????? | | ????????????????????# ## # #### ###??????? | | ????????????????????# # ## ##?????? | | ????????????????????# @ ##????? | | ????????????????????# # ## ##???? | | ?????????????# # #### ##### | | ?????????????# #??# | | ?????????????## #### | | ??????????????## ## | | ???????????????## # ##### # | | ????????????????## " ##????#### | | ?????????????????# # #????????? | | ?????????????????## ##?# ##????????? | | ??????????????????###????## #?????????? | | ???????????????????????????### #?????????? | | ?????????????????????????????## ##?????????? | | ??????????????????????????????##### ##??????????? | | ??????????????????????????????????####???????????? | | ?????????????????????????????????????????????????? | | ?????????????????????????????????????????????????? | | ?????????????????????????????????????????????????? | | ?????????????????????????????????????????????????? | | ?????????????????????????????????????????????????? | | ?????????????????????????????????????????????????? | | ?????????????????????????????????????????????????? | | ?????????????????????????????????????????????????? | | ?????????????????????????????????????????????????? | | ?????????????????????????????????????????????????? | +----------------------------------------------------+ Best States ------------- Heat Dissipation 25 Energy Generation 10 Energy Capacity 250 Matter Stores 300 Matter Capacity 300 Sight Range 16 Terrain Scan Density 10 Resistance: KI 20 Resistance: TH 20 Resistance: EX 20 Resistance: EM 20 Resistance: I 20 Resistance: S 20 Resistance: P 20 Evasion (%) 40 Recoil Reduction 2 Offensive Hacking 10 Item Schematics ----------------- None Robot Schematics ------------------ None Fabricated ------------ Nothing Repaired ---------- Nothing Studied --------- None Alien Tech Used ----------------- None Achievements -------------- None Challenges ------------ None Game ------ Seed AblativeMagneticCharger Manual? 0 Play Time 00:10:35 Cumulative 52.5 hours Start 2026.04.03 @ 16:15:07 End 2026.04.03 @ 16:23:36 Sessions 1 Manual Loads 0 Difficulty Adventurer Special Mode None Game No. 51 Rogue 0 Adventurer 51 Explorer 0 Win Type - Total 0 Types 0/0/0/0/0/0/0/0/0/0 Lore% 20 Gallery% 37 Achievement% 34 Wizard Run 0 Options --------- Layout 1 ASCII 0 Keyboard 0 Movement Mouse Keybinds 1 Fullscreen 1 Font 32/Tamsyn Map View 50x35 Zoom Use 0% Tactical HUD 0 Map Filters NONE Filters NONE Steam 1 RUN: b71d0e01-92d8-4d45-835a-09dfb556f70b